[Event "*** Titled Tuesday Blitz"]
[Site "Chess.com"]
[Date "2019.06.04"]
[Round "8"]
[White "NateSolon"]
[Black "JMatias"]
[Result "1-0"]
[WhiteElo "2496"]
[BlackElo "2427"]
[TimeControl "180+2"]
[EndTime "14:51:15 PDT"]
[Termination "NateSolon won by checkmate"]

1. d4 {[%clk 0:03:01.9]} 1... Nf6 {[%clk 0:03:00]} 2. Bg5 {[%clk 0:03:01.7]}
2... e6 {[%clk 0:02:59.9]} 3. e4 {[%clk 0:03:01.1]} 3... h6 {[%clk 0:03:01.4]}
4. Bxf6 {[%clk 0:03:02.1]} 4... Qxf6 {[%clk 0:03:03.3]} 5. c3 {[%clk 0:03:03.4]}
5... d6 {[%clk 0:03:04.9]} 6. Bd3 {[%clk 0:03:03]} 6... e5 {[%clk 0:03:06.2]} 7.
Ne2 {[%clk 0:03:03.9]} 7... g5 {[%clk 0:03:04.4]} 8. O-O {[%clk 0:03:04.2]} 8...
Nc6 {[%clk 0:02:58.3]} 9. Bb5 {[%clk 0:02:55.8]} 9... Bd7 {[%clk 0:02:54.2]} 10.
d5 {[%clk 0:02:44.4]} 10... Nb8 {[%clk 0:02:54.3]} 11. Bxd7+ {[%clk 0:02:44.2]}
11... Nxd7 {[%clk 0:02:56]} 12. Ng3 {[%clk 0:02:40.9]} 12... Bg7 {[%clk
0:02:52.1]} 13. Nd2 {[%clk 0:02:37.1]} 13... O-O {[%clk 0:02:52.4]} 14. Nc4
{[%clk 0:02:29]} 14... Rfe8 {[%clk 0:02:33.1]} 15. Ne3 {[%clk 0:02:29.4]} 15...
Nf8 {[%clk 0:02:32]} 16. Nh5 {[%clk 0:02:23.7]} 16... Qg6 {[%clk 0:02:22.2]} 17.
Nf5 {[%clk 0:02:22.2]} 17... Bh8 {[%clk 0:02:21.4]} 18. a4 {[%clk 0:02:12.4]}
18... g4 {[%clk 0:02:07]} 19. Qxg4 {[%clk 0:02:07.8]} 19... Qxg4 {[%clk
0:02:06.2]} 20. Nxh6+ {[%clk 0:02:08.9]} 20... Kh7 {[%clk 0:02:06.7]} 21. Nxg4
{[%clk 0:02:10.8]} 21... Kg6 {[%clk 0:02:05]} 22. Ng3 {[%clk 0:02:09]} 22... Kg5
{[%clk 0:01:57.9]} 23. Ne3 {[%clk 0:02:08.2]} 23... Ng6 {[%clk 0:01:59.1]} 24.
Ngf5 {[%clk 0:02:06.7]} 24... Bf6 {[%clk 0:01:54.2]} 25. g3 {[%clk 0:02:05.6]}
25... Kh5 {[%clk 0:01:54.1]} 26. h4 {[%clk 0:01:52.5]} 26... Nf8 {[%clk
0:01:41.8]} 27. Kg2 {[%clk 0:01:47.7]} 27... Kg6 {[%clk 0:01:42.5]} 28. a5
{[%clk 0:01:44]} 28... a6 {[%clk 0:01:42]} 29. Ra4 {[%clk 0:01:42.5]} 29... Rab8
{[%clk 0:01:39.7]} 30. Rb4 {[%clk 0:01:42.6]} 30... Nd7 {[%clk 0:01:33.8]} 31.
Rh1 {[%clk 0:01:36.3]} 31... Nc5 {[%clk 0:01:34.1]} 32. f3 {[%clk 0:01:30.3]}
32... Rh8 {[%clk 0:01:34.7]} 33. Ng4 {[%clk 0:01:28.6]} 33... Bd8 {[%clk
0:01:35.1]} 34. Nf2 {[%clk 0:01:17.4]} 34... f6 {[%clk 0:01:29.7]} 35. Rd1
{[%clk 0:01:15.4]} 35... Kf7 {[%clk 0:01:26.5]} 36. Nd3 {[%clk 0:01:16.7]} 36...
Nd7 {[%clk 0:01:20.3]} 37. g4 {[%clk 0:01:15.9]} 37... Be7 {[%clk 0:01:20.8]}
38. h5 {[%clk 0:01:16.4]} 38... Bf8 {[%clk 0:01:21.2]} 39. Rc4 {[%clk
0:01:08.3]} 39... Rc8 {[%clk 0:01:22]} 40. Rh1 {[%clk 0:01:06.1]} 40... Bh6
{[%clk 0:01:22.5]} 41. Rb1 {[%clk 0:01:03.7]} 41... Bd2 {[%clk 0:01:19.3]} 42.
Kf1 {[%clk 0:01:00.7]} 42... Bg5 {[%clk 0:01:16.2]} 43. Ke2 {[%clk 0:01:00.6]}
43... Rhd8 {[%clk 0:01:14.6]} 44. b4 {[%clk 0:00:59]} 44... b5 {[%clk
0:01:09.4]} 45. axb6 {[%clk 0:00:49.1]} 45... Nxb6 {[%clk 0:01:06.7]} 46. Rc6
{[%clk 0:00:50]} 46... Rd7 {[%clk 0:01:02.3]} 47. Ra1 {[%clk 0:00:48.3]} 47...
Ra8 {[%clk 0:01:02.1]} 48. c4 {[%clk 0:00:48.1]} 48... Ra7 {[%clk 0:01:02.1]}
49. c5 {[%clk 0:00:47.6]} 49... Nc8 {[%clk 0:00:56.4]} 50. Raxa6 {[%clk
0:00:43.9]} 50... Rxa6 {[%clk 0:00:38.6]} 51. Rxa6 {[%clk 0:00:45.8]} 51... dxc5
{[%clk 0:00:31.9]} 52. Nxc5 {[%clk 0:00:42.9]} 52... Rd8 {[%clk 0:00:29.6]} 53.
Ra8 {[%clk 0:00:42.6]} 53... Rg8 {[%clk 0:00:20.6]} 54. Ne6 {[%clk 0:00:38.6]}
54... Nd6 {[%clk 0:00:21]} 55. Ra7 {[%clk 0:00:33.1]} 55... Nb5 {[%clk 0:00:21]}
56. Rb7 {[%clk 0:00:34]} 56... Nc3+ {[%clk 0:00:22.1]} 57. Kd3 {[%clk
0:00:35.1]} 57... Nd1 {[%clk 0:00:23.1]} 58. Rxc7+ {[%clk 0:00:35.5]} 58... Ke8
{[%clk 0:00:24.5]} 59. Re7# {[%clk 0:00:35.9]} 1-0

[Event "*** Titled Tuesday Blitz"]
[Site "Chess.com"]
[Date "2019.06.04"]
[Round "8"]
[White "chessking2151"]
[Black "Msb2"]
[Result "0-1"]
[WhiteElo "2602"]
[BlackElo "2809"]
[TimeControl "180+2"]
[EndTime "14:51:19 PDT"]
[Termination "Msb2 won by checkmate"]

1. Nf3 {[%clk 0:03:01.9]} 1... d5 {[%clk 0:02:56.7]} 2. g3 {[%clk 0:03:02.1]}
2... Bg4 {[%clk 0:02:57.1]} 3. Bg2 {[%clk 0:02:49.4]} 3... e6 {[%clk 0:02:57.9]}
4. O-O {[%clk 0:02:50.4]} 4... Nf6 {[%clk 0:02:59.1]} 5. c4 {[%clk 0:02:46.7]}
5... c6 {[%clk 0:02:59.9]} 6. d4 {[%clk 0:02:43.5]} 6... Nbd7 {[%clk 0:02:59]}
7. h3 {[%clk 0:02:40.3]} 7... Bh5 {[%clk 0:03:00.2]} 8. cxd5 {[%clk 0:02:40.7]}
8... exd5 {[%clk 0:03:02.1]} 9. Qb3 {[%clk 0:02:41.4]} 9... Qb6 {[%clk
0:03:03.7]} 10. Qe3+ {[%clk 0:02:42.6]} 10... Be7 {[%clk 0:03:05.4]} 11. Nh4
{[%clk 0:02:29.7]} 11... Bg6 {[%clk 0:03:04.3]} 12. Nc3 {[%clk 0:02:14]} 12...
Qd8 {[%clk 0:03:04]} 13. b3 {[%clk 0:01:53.4]} 13... O-O {[%clk 0:03:03.2]} 14.
Nxg6 {[%clk 0:01:52.3]} 14... hxg6 {[%clk 0:03:05.1]} 15. h4 {[%clk 0:01:50.4]}
15... Re8 {[%clk 0:03:06.3]} 16. Qd3 {[%clk 0:01:48.1]} 16... Nf8 {[%clk
0:03:07.6]} 17. Bh3 {[%clk 0:01:35.4]} 17... Bb4 {[%clk 0:03:08]} 18. Nd1 {[%clk
0:01:29.4]} 18... Bd6 {[%clk 0:03:08.7]} 19. Ne3 {[%clk 0:01:09.6]} 19... Ne4
{[%clk 0:03:08.8]} 20. Ng2 {[%clk 0:01:06.9]} 20... Qc7 {[%clk 0:03:10.1]} 21.
Bg4 {[%clk 0:00:58.1]} 21... f5 {[%clk 0:03:09.1]} 22. Bf3 {[%clk 0:00:57.8]}
22... Ne6 {[%clk 0:03:10.7]} 23. Re1 {[%clk 0:00:17.6]} 23... Bb4 {[%clk
0:02:28.3]} 24. Rf1 {[%clk 0:00:16.9]} 24... Nxd4 {[%clk 0:02:19.4]} 25. Bf4
{[%clk 0:00:12.2]} 25... Qb6 {[%clk 0:02:16.8]} 26. Be3 {[%clk 0:00:11.6]} 26...
Bc5 {[%clk 0:02:04.7]} 27. Rac1 {[%clk 0:00:03.7]} 27... Ne6 {[%clk 0:01:58.6]}
28. Bxc5 {[%clk 0:00:02.6]} 28... N6xc5 {[%clk 0:01:59.6]} 29. Qd4 {[%clk
0:00:03.8]} 29... Nd7 {[%clk 0:01:59.9]} 30. Qxb6 {[%clk 0:00:03.5]} 30... axb6
{[%clk 0:02:01.8]} 31. a4 {[%clk 0:00:04.8]} 31... Nd2 {[%clk 0:02:02.3]} 32.
Rfd1 {[%clk 0:00:06.1]} 32... Nxb3 {[%clk 0:02:03.5]} 33. Rb1 {[%clk 0:00:06.8]}
33... Nbc5 {[%clk 0:02:00.5]} 34. Nf4 {[%clk 0:00:08.3]} 34... Kf7 {[%clk
0:01:53.5]} 35. h5 {[%clk 0:00:08.7]} 35... Rxa4 {[%clk 0:01:45]} 36. hxg6+
{[%clk 0:00:08.9]} 36... Kf6 {[%clk 0:01:46.6]} 37. Bxd5 {[%clk 0:00:06.4]}
37... Rxf4 {[%clk 0:01:36.9]} 38. gxf4 {[%clk 0:00:04.7]} 38... cxd5 {[%clk
0:01:38]} 39. Rxd5 {[%clk 0:00:06.5]} 39... Kxg6 {[%clk 0:01:39.4]} 40. Rd6+
{[%clk 0:00:07]} 40... Re6 {[%clk 0:01:40.1]} 41. Rd5 {[%clk 0:00:07.5]} 41...
Rxe2 {[%clk 0:01:40.4]} 42. Kg2 {[%clk 0:00:08.5]} 42... Kf6 {[%clk 0:01:39.8]}
43. Kf3 {[%clk 0:00:09.5]} 43... Re7 {[%clk 0:01:39.1]} 44. Rg1 {[%clk
0:00:10.2]} 44... Ne4 {[%clk 0:01:37.4]} 45. Rgd1 {[%clk 0:00:07.1]} 45... Ndc5
{[%clk 0:01:38.2]} 46. Rd8 {[%clk 0:00:07.4]} 46... Kf7 {[%clk 0:01:37.3]} 47.
Rh1 {[%clk 0:00:07.9]} 47... b5 {[%clk 0:01:37.8]} 48. Rhh8 {[%clk 0:00:08.8]}
48... Ne6 {[%clk 0:01:37.9]} 49. Rd5 {[%clk 0:00:08.2]} 49... Kg6 {[%clk
0:01:37.5]} 50. Rh2 {[%clk 0:00:08]} 50... b4 {[%clk 0:01:36.8]} 51. Rh1 {[%clk
0:00:05.4]} 51... Rc7 {[%clk 0:01:35.9]} 52. Rb1 {[%clk 0:00:06.1]} 52... Nc3
{[%clk 0:01:36.6]} 53. Rg1+ {[%clk 0:00:07]} 53... Kf6 {[%clk 0:01:37.4]} 54.
Rd6 {[%clk 0:00:08.3]} 54... Ne4 {[%clk 0:01:36.4]} 55. Rb6 {[%clk 0:00:08.7]}
55... Rc3+ {[%clk 0:01:37.4]} 56. Kg2 {[%clk 0:00:10.1]} 56... Rc2 {[%clk
0:01:38.5]} 57. Rxb4 {[%clk 0:00:10.4]} 57... Rxf2+ {[%clk 0:01:39.5]} 58. Kh1
{[%clk 0:00:12]} 58... Rxf4 {[%clk 0:01:40.5]} 59. Rxb7 {[%clk 0:00:13.1]} 59...
Rh4+ {[%clk 0:01:36.4]} 60. Kg2 {[%clk 0:00:13.9]} 60... Rg4+ {[%clk 0:01:38.3]}
61. Kf1 {[%clk 0:00:15.1]} 61... Rxg1+ {[%clk 0:01:40.2]} 62. Kxg1 {[%clk
0:00:16.2]} 62... g5 {[%clk 0:01:42.1]} 63. Rb6 {[%clk 0:00:16.8]} 63... g4
{[%clk 0:01:43.5]} 64. Kg2 {[%clk 0:00:17.3]} 64... Ke5 {[%clk 0:01:44.8]} 65.
Kh1 {[%clk 0:00:18.8]} 65... Nf4 {[%clk 0:01:45.7]} 66. Rb5+ {[%clk 0:00:19.8]}
66... Nd5 {[%clk 0:01:47]} 67. Kg2 {[%clk 0:00:20.6]} 67... f4 {[%clk
0:01:48.5]} 68. Rb3 {[%clk 0:00:21.5]} 68... Ne3+ {[%clk 0:01:45.9]} 69. Kh1
{[%clk 0:00:22.3]} 69... g3 {[%clk 0:01:43.5]} 70. Kg1 {[%clk 0:00:23.3]} 70...
Nd2 {[%clk 0:01:42.2]} 71. Rb5+ {[%clk 0:00:19.8]} 71... Ke4 {[%clk 0:01:42]}
72. Kh1 {[%clk 0:00:20.5]} 72... g2+ {[%clk 0:01:42.2]} 73. Kh2 {[%clk
0:00:21.1]} 73... Nf3+ {[%clk 0:01:44.1]} 74. Kh3 {[%clk 0:00:17.6]} 74... g1=N#
{[%clk 0:01:43.3]} 0-1

[Event "*** Titled Tuesday Blitz"]
[Site "Chess.com"]
[Date "2019.06.04"]
[Round "8"]
[White "TST2014"]
[Black "witcher8"]
[Result "0-1"]
[WhiteElo "2557"]
[BlackElo "2412"]
[TimeControl "180+2"]
[EndTime "14:51:24 PDT"]
[Termination "witcher8 won by checkmate"]

1. d4 {[%clk 0:03:01.9]} 1... Nf6 {[%clk 0:02:59.7]} 2. c4 {[%clk 0:03:02.6]}
2... g6 {[%clk 0:03:00.8]} 3. Nc3 {[%clk 0:03:02.6]} 3... Bg7 {[%clk 0:03:00.8]}
4. e4 {[%clk 0:03:03.7]} 4... d6 {[%clk 0:03:02.7]} 5. Nf3 {[%clk 0:03:04.4]}
5... O-O {[%clk 0:03:02.5]} 6. Be2 {[%clk 0:03:05.5]} 6... e5 {[%clk 0:03:02.7]}
7. O-O {[%clk 0:03:06.4]} 7... Nc6 {[%clk 0:03:03.4]} 8. d5 {[%clk 0:03:07.3]}
8... Ne7 {[%clk 0:03:03.9]} 9. b4 {[%clk 0:03:08.2]} 9... Nh5 {[%clk 0:03:02.7]}
10. g3 {[%clk 0:03:06.6]} 10... f5 {[%clk 0:02:47.2]} 11. Ng5 {[%clk 0:03:06.2]}
11... Nf6 {[%clk 0:02:48.1]} 12. f3 {[%clk 0:03:03.8]} 12... c6 {[%clk
0:02:43.8]} 13. Be3 {[%clk 0:03:01.4]} 13... h6 {[%clk 0:02:44.1]} 14. Ne6
{[%clk 0:03:01.3]} 14... Bxe6 {[%clk 0:02:43.7]} 15. dxe6 {[%clk 0:03:02.6]}
15... Qc7 {[%clk 0:02:45.6]} 16. Qb3 {[%clk 0:02:51.6]} 16... Qc8 {[%clk
0:02:44.1]} 17. a4 {[%clk 0:01:46.5]} 17... Qxe6 {[%clk 0:02:25.4]} 18. a5
{[%clk 0:01:47.5]} 18... Kh7 {[%clk 0:02:17.5]} 19. Rad1 {[%clk 0:01:46.9]}
19... f4 {[%clk 0:02:08.6]} 20. Bf2 {[%clk 0:01:42.2]} 20... g5 {[%clk
0:02:02.5]} 21. g4 {[%clk 0:01:39.1]} 21... h5 {[%clk 0:01:52.7]} 22. h3 {[%clk
0:01:39.9]} 22... hxg4 {[%clk 0:01:26.9]} 23. fxg4 {[%clk 0:01:40.3]} 23... a6
{[%clk 0:01:28]} 24. Bf3 {[%clk 0:01:40.5]} 24... Ng6 {[%clk 0:01:24.3]} 25. Rd2
{[%clk 0:01:39.4]} 25... Rh8 {[%clk 0:01:25.4]} 26. Rfd1 {[%clk 0:01:40.1]}
26... Bf8 {[%clk 0:01:20.5]} 27. Qa2 {[%clk 0:01:13.8]} 27... Kg7 {[%clk
0:01:20.7]} 28. c5 {[%clk 0:01:14.9]} 28... Qxa2 {[%clk 0:01:13.4]} 29. Nxa2
{[%clk 0:01:16.1]} 29... Rxh3 {[%clk 0:01:14.8]} 30. Bg2 {[%clk 0:01:14.5]}
30... Ra3 {[%clk 0:01:10.3]} 31. cxd6 {[%clk 0:01:15.3]} 31... f3 {[%clk
0:01:03.9]} 32. Bf1 {[%clk 0:01:01.5]} 32... Nxe4 {[%clk 0:01:03.1]} 33. d7
{[%clk 0:00:48.6]} 33... Nxd2 {[%clk 0:00:59.6]} 34. Rxd2 {[%clk 0:00:49.8]}
34... Be7 {[%clk 0:01:00.5]} 35. Bb6 {[%clk 0:00:47.7]} 35... e4 {[%clk
0:00:37.4]} 36. Bc4 {[%clk 0:00:42.7]} 36... Bd8 {[%clk 0:00:29.1]} 37. Bd4+
{[%clk 0:00:43.2]} 37... Bf6 {[%clk 0:00:26.8]} 38. Bb6 {[%clk 0:00:42.7]} 38...
e3 {[%clk 0:00:25.9]} 39. d8=Q {[%clk 0:00:31.5]} 39... Bxd8 {[%clk 0:00:20.4]}
40. Rxd8 {[%clk 0:00:32.1]} 40... Rxd8 {[%clk 0:00:21.2]} 41. Bxd8 {[%clk
0:00:33.7]} 41... Ne5 {[%clk 0:00:13.5]} 42. Be6 {[%clk 0:00:30.3]} 42... Nxg4
{[%clk 0:00:13.8]} 43. Bxg5 {[%clk 0:00:23.6]} 43... f2+ {[%clk 0:00:11]} 44.
Kg2 {[%clk 0:00:23.8]} 44... e2 {[%clk 0:00:12]} 45. Bxg4 {[%clk 0:00:18.7]}
45... f1=Q+ {[%clk 0:00:13]} 46. Kh2 {[%clk 0:00:19.1]} 46... e1=Q {[%clk
0:00:14.2]} 47. Nc1 {[%clk 0:00:06.3]} 47... Qef2# {[%clk 0:00:12.9]} 0-1

[Event "*** Titled Tuesday Blitz"]
[Site "Chess.com"]
[Date "2019.06.04"]
[Round "8"]
[White "NM2019"]
[Black "fidezivkovic"]
[Result "1-0"]
[WhiteElo "2114"]
[BlackElo "2215"]
[TimeControl "180+2"]
[EndTime "14:51:35 PDT"]
[Termination "NM2019 won on time"]

1. c4 {[%clk 0:03:01.7]} 1... e5 {[%clk 0:02:59.8]} 2. Nc3 {[%clk 0:03:02.6]}
2... Bb4 {[%clk 0:02:59.9]} 3. Nf3 {[%clk 0:03:04.1]} 3... d6 {[%clk 0:02:56.3]}
4. Nd5 {[%clk 0:03:05.1]} 4... a5 {[%clk 0:02:47.1]} 5. Nxb4 {[%clk 0:03:01.7]}
5... axb4 {[%clk 0:02:47]} 6. d4 {[%clk 0:03:03.4]} 6... exd4 {[%clk 0:02:44.1]}
7. Qxd4 {[%clk 0:03:04.1]} 7... Nf6 {[%clk 0:02:42.6]} 8. Bg5 {[%clk 0:03:03.3]}
8... Nbd7 {[%clk 0:02:40.7]} 9. e4 {[%clk 0:03:02.5]} 9... O-O {[%clk 0:02:40]}
10. Bd3 {[%clk 0:03:03.4]} 10... Re8 {[%clk 0:02:33.3]} 11. O-O {[%clk
0:03:04.1]} 11... h6 {[%clk 0:02:30.8]} 12. Bh4 {[%clk 0:03:04.9]} 12... Qe7
{[%clk 0:02:22.3]} 13. Rfe1 {[%clk 0:03:05.5]} 13... Ne5 {[%clk 0:02:20.1]} 14.
Nxe5 {[%clk 0:02:57.5]} 14... dxe5 {[%clk 0:02:19.8]} 15. Bxf6 {[%clk
0:02:54.1]} 15... Qxf6 {[%clk 0:02:06.4]} 16. Qc5 {[%clk 0:02:55]} 16... Rd8
{[%clk 0:02:00.7]} 17. Bf1 {[%clk 0:02:53.2]} 17... Qd6 {[%clk 0:01:59.7]} 18.
Qe3 {[%clk 0:02:45.1]} 18... Be6 {[%clk 0:01:51.8]} 19. b3 {[%clk 0:02:45.1]}
19... Qd4 {[%clk 0:01:41.1]} 20. Qxd4 {[%clk 0:02:39.7]} 20... Rxd4 {[%clk
0:01:40.9]} 21. Re2 {[%clk 0:02:38.5]} 21... Rad8 {[%clk 0:01:34.9]} 22. f3
{[%clk 0:02:38.9]} 22... Kf8 {[%clk 0:01:20.4]} 23. Kf2 {[%clk 0:02:38.3]} 23...
Ke7 {[%clk 0:01:18.2]} 24. a3 {[%clk 0:02:39.3]} 24... bxa3 {[%clk 0:01:13.2]}
25. Rxa3 {[%clk 0:02:40]} 25... b6 {[%clk 0:01:12.7]} 26. Ra7 {[%clk 0:02:37.8]}
26... R8d7 {[%clk 0:01:12.7]} 27. Rc2 {[%clk 0:02:34.9]} 27... Rd1 {[%clk
0:01:09.3]} 28. b4 {[%clk 0:02:30.5]} 28... Rb1 {[%clk 0:01:08.3]} 29. c5 {[%clk
0:02:22.8]} 29... bxc5 {[%clk 0:00:59]} 30. bxc5 {[%clk 0:02:20.1]} 30... Bb3
{[%clk 0:00:52.6]} 31. c6 {[%clk 0:02:04.7]} 31... Bxc2 {[%clk 0:00:48.1]} 32.
cxd7 {[%clk 0:02:05.7]} 32... Kxd7 {[%clk 0:00:48.3]} 33. g3 {[%clk 0:02:05.2]}
33... Kd6 {[%clk 0:00:36.6]} 34. Bc4 {[%clk 0:02:04.1]} 34... f6 {[%clk
0:00:35.5]} 35. Ra6+ {[%clk 0:02:02.9]} 35... Rb6 {[%clk 0:00:35.3]} 36. Ra2
{[%clk 0:02:01.2]} 36... Bb3 {[%clk 0:00:35.1]} 37. Rd2+ {[%clk 0:02:01.3]}
37... Kc5 {[%clk 0:00:31.7]} 38. Be2 {[%clk 0:01:58.9]} 38... Rd6 {[%clk
0:00:30.2]} 39. Rb2 {[%clk 0:01:59.2]} 39... Bc4 {[%clk 0:00:24.3]} 40. Rc2
{[%clk 0:01:57.6]} 40... Rd4 {[%clk 0:00:22.3]} 41. Ke3 {[%clk 0:01:59.2]} 41...
Kb4 {[%clk 0:00:22.4]} 42. Bxc4 {[%clk 0:01:57.6]} 42... Rxc4 {[%clk 0:00:22]}
43. Rd2 {[%clk 0:01:59.2]} 43... Kb3 {[%clk 0:00:17.2]} 44. Rd7 {[%clk
0:01:58.6]} 44... c5 {[%clk 0:00:17.3]} 45. Rxg7 {[%clk 0:01:59.2]} 45... Rc3+
{[%clk 0:00:16.2]} 46. Kf2 {[%clk 0:01:59.1]} 46... Rc2+ {[%clk 0:00:15.7]} 47.
Kg1 {[%clk 0:02:00.3]} 47... c4 {[%clk 0:00:16]} 48. f4 {[%clk 0:02:01.3]} 48...
c3 {[%clk 0:00:15.6]} 49. Rg6 {[%clk 0:01:55]} 49... Rb2 {[%clk 0:00:15.1]} 50.
Rxf6 {[%clk 0:01:55.7]} 50... c2 {[%clk 0:00:15.6]} 51. Rc6 {[%clk 0:01:57.1]}
51... Rb1+ {[%clk 0:00:14.4]} 52. Kf2 {[%clk 0:01:58.1]} 52... c1=Q {[%clk
0:00:14.3]} 53. Rxc1 {[%clk 0:01:59.7]} 53... Rxc1 {[%clk 0:00:14.6]} 54. fxe5
{[%clk 0:02:00.2]} 54... Rc6 {[%clk 0:00:14.6]} 55. Ke3 {[%clk 0:02:01.3]} 55...
Kc4 {[%clk 0:00:14.5]} 56. Kf4 {[%clk 0:02:02.9]} 56... Kc5 {[%clk 0:00:13.1]}
57. Kg4 {[%clk 0:02:04.1]} 57... Re6 {[%clk 0:00:10]} 58. Kf5 {[%clk 0:02:05.1]}
58... Re8 {[%clk 0:00:10.2]} 59. g4 {[%clk 0:02:03.5]} 59... Kc6 {[%clk
0:00:10]} 60. h4 {[%clk 0:02:03.3]} 60... Kd7 {[%clk 0:00:10.4]} 61. g5 {[%clk
0:02:04]} 61... hxg5 {[%clk 0:00:10.2]} 62. hxg5 {[%clk 0:02:05.1]} 62... Ke7
{[%clk 0:00:10.4]} 63. g6 {[%clk 0:02:06.1]} 63... Rg8 {[%clk 0:00:09.9]} 64. e6
{[%clk 0:02:06.2]} 64... Rg7 {[%clk 0:00:10]} 65. e5 {[%clk 0:02:05.5]} 65...
Rg8 {[%clk 0:00:10.2]} 66. Kg5 {[%clk 0:02:06.7]} 66... Kxe6 {[%clk 0:00:10.6]}
67. Kh6 {[%clk 0:02:08.4]} 67... Re8 {[%clk 0:00:05]} 68. Kh7 {[%clk 0:02:07.9]}
1-0

[Event "*** Titled Tuesday Blitz"]
[Site "Chess.com"]
[Date "2019.06.04"]
[Round "8"]
[White "SanchezKelvin"]
[Black "bugsbunny444"]
[Result "1-0"]
[WhiteElo "2454"]
[BlackElo "2474"]
[TimeControl "180+2"]
[EndTime "14:51:36 PDT"]
[Termination "SanchezKelvin won by checkmate"]

1. d4 {[%clk 0:03:01.9]} 1... e6 {[%clk 0:03:01]} 2. c4 {[%clk 0:03:02]} 2... b6
{[%clk 0:03:02.3]} 3. Nf3 {[%clk 0:03:01]} 3... Bb7 {[%clk 0:03:03.6]} 4. Bg5
{[%clk 0:03:01.3]} 4... Be7 {[%clk 0:02:58.2]} 5. Bxe7 {[%clk 0:03:01.9]} 5...
Qxe7 {[%clk 0:03:00.1]} 6. Nbd2 {[%clk 0:03:00.8]} 6... f5 {[%clk 0:02:54]} 7.
e3 {[%clk 0:02:59.2]} 7... Nf6 {[%clk 0:02:55.2]} 8. Bd3 {[%clk 0:02:59.8]} 8...
O-O {[%clk 0:02:56.4]} 9. Qc2 {[%clk 0:03:00.7]} 9... c5 {[%clk 0:02:54.8]} 10.
dxc5 {[%clk 0:02:59.6]} 10... bxc5 {[%clk 0:02:55.2]} 11. O-O {[%clk 0:02:46.3]}
11... Nc6 {[%clk 0:02:53]} 12. a3 {[%clk 0:02:46.7]} 12... g6 {[%clk 0:02:35.1]}
13. Rfe1 {[%clk 0:02:41.8]} 13... e5 {[%clk 0:02:32.3]} 14. e4 {[%clk
0:02:40.2]} 14... f4 {[%clk 0:02:31.3]} 15. Nb3 {[%clk 0:02:36.2]} 15... a5
{[%clk 0:02:26.8]} 16. Bf1 {[%clk 0:02:29.7]} 16... d6 {[%clk 0:02:23.5]} 17.
Rad1 {[%clk 0:02:25.7]} 17... Kg7 {[%clk 0:02:18.6]} 18. Nbd2 {[%clk 0:02:19.8]}
18... a4 {[%clk 0:02:04.4]} 19. Nb1 {[%clk 0:02:19.8]} 19... Nd4 {[%clk
0:02:05.8]} 20. Qd3 {[%clk 0:02:17.5]} 20... Bc6 {[%clk 0:01:58.6]} 21. Nc3
{[%clk 0:02:17]} 21... Rfb8 {[%clk 0:01:52.8]} 22. Rd2 {[%clk 0:02:11.2]} 22...
Rb3 {[%clk 0:01:51.8]} 23. Qb1 {[%clk 0:01:50.6]} 23... Rab8 {[%clk 0:01:36.4]}
24. Nxd4 {[%clk 0:01:37.3]} 24... cxd4 {[%clk 0:01:32.6]} 25. Nb5 {[%clk
0:01:34.7]} 25... Nd7 {[%clk 0:01:05.1]} 26. Bd3 {[%clk 0:01:25.5]} 26... f3
{[%clk 0:00:56.5]} 27. g3 {[%clk 0:01:09.1]} 27... Qe6 {[%clk 0:00:54.3]} 28.
Bf1 {[%clk 0:01:02.1]} 28... Nc5 {[%clk 0:00:53]} 29. Qc1 {[%clk 0:00:34.3]}
29... Nxe4 {[%clk 0:00:44.4]} 30. Rd3 {[%clk 0:00:22.7]} 30... Qf6 {[%clk
0:00:25.8]} 31. Rxb3 {[%clk 0:00:20.9]} 31... axb3 {[%clk 0:00:26.4]} 32. a4
{[%clk 0:00:20.5]} 32... Nc5 {[%clk 0:00:27.5]} 33. a5 {[%clk 0:00:19.7]} 33...
Ra8 {[%clk 0:00:27.8]} 34. Qa1 {[%clk 0:00:18.7]} 34... Qd8 {[%clk 0:00:24.3]}
35. a6 {[%clk 0:00:14.5]} 35... Rxa6 {[%clk 0:00:25.4]} 36. Qc1 {[%clk
0:00:14.8]} 36... h6 {[%clk 0:00:20.5]} 37. h4 {[%clk 0:00:15.7]} 37... Ra8
{[%clk 0:00:17.3]} 38. Qd2 {[%clk 0:00:16.6]} 38... Ra2 {[%clk 0:00:17.2]} 39.
Na3 {[%clk 0:00:16.2]} 39... Na4 {[%clk 0:00:13.9]} 40. Rb1 {[%clk 0:00:11.3]}
40... Qb6 {[%clk 0:00:11.2]} 41. c5 {[%clk 0:00:11.7]} 41... Qxc5 {[%clk
0:00:11.6]} 42. Rc1 {[%clk 0:00:09.1]} 42... Qb6 {[%clk 0:00:09.5]} 43. Nc4
{[%clk 0:00:09.2]} 43... Qd8 {[%clk 0:00:09.7]} 44. Qb4 {[%clk 0:00:09]} 44...
Nc5 {[%clk 0:00:10.6]} 45. Nxd6 {[%clk 0:00:08.3]} 45... Qxd6 {[%clk 0:00:11.7]}
46. Rxc5 {[%clk 0:00:08.6]} 46... Rxb2 {[%clk 0:00:09]} 47. Qb6 {[%clk
0:00:07.2]} 47... Rc2 {[%clk 0:00:10.2]} 48. Ra5 {[%clk 0:00:07]} 48... b2
{[%clk 0:00:08.1]} 49. Ra7+ {[%clk 0:00:07.9]} 49... Kf6 {[%clk 0:00:08.6]} 50.
Qb3 {[%clk 0:00:05.8]} 50... b1=Q {[%clk 0:00:02.9]} 51. Qf7# {[%clk 0:00:06.4]}
1-0